fUSD/lending_fUSD_20241105
["ID","MTS","AMOUNT","RATE_DAILY","PERIOD"]
[341362482,1730836232308,-245.21586623,0.00015455,2]
[341362483,1730836232317,-784.44741223,0.00015689,2]
[341362484,1730836232461,-1715.69749431,0.00015689,2]
[341362486,1730836232471,-4287.412267,0.0001571,2]
[341362488,1730836232480,-2103.2236,0.0001579,2]
[341362490,1730836232490,-263.1529,0.0001579,2]
[341362492,1730836232500,-3831.5305,0.0001579,2]
[341362494,1730836232510,-2500.0,0.000158,2]
[341362497,1730836232519,-500.0,0.00015873,2]
[341362499,1730836232529,-500.0,0.00015873,2]
[341362501,1730836232539,-300.0,0.00015888,2]
[341362503,1730836232549,-1499.14,0.00015888,2]
[341362505,1730836232560,-317.72,0.00015889,2]
[341362507,1730836232569,-789.13,0.00015889,2]
[341362509,1730836232578,-405.51,0.00015889,2]
[341362512,1730836232587,-9044.54,0.0001589,2]
[341362514,1730836232596,-8602.94323877,0.0001589,2]
[341362516,1730836232608,-80596.44846176,0.0001589,2]
[341362518,1730836232618,-8238.0308,0.000159,2]
[341362520,1730836232627,-51065.52073824,0.000159,2]
[341362522,1730836232639,-761.785,0.000159,2]
[341362538,1730836238330,-158.69122756,0.00015873,2]
[341362539,1730836238340,-3507.32728649,0.000159,2]
[341362540,1730836238351,-13228.6,0.000159,2]
[341362541,1730836238382,-2437.9,0.000159,2]
[341362554,1730836240672,-1769.02874,0.000159,2]
[341362587,1730836243354,-1247.27117613,0.000159,2]
[341362601,1730836243516,-4244.13195914,0.000159,2]
[341362603,1730836243526,-1000.0,0.000159,2]
[341362606,1730836243535,-832.54,0.000159,2]
[341362607,1730836243544,-593.09771663,0.00016116,2]
[341362610,1730836243555,-1605.59228337,0.00016116,2]
[341362612,1730836243565,-510.0,0.00017016,2]
[341362614,1730836243574,-501.29253559,0.00017242,2]
[341362616,1730836243584,-868.47,0.00017917,2]
[341362618,1730836243593,-522.0,0.00018224,2]
[341362620,1730836243603,-250.0,0.00018365,2]
[341362622,1730836243612,-250.0,0.00018937,2]
[341362624,1730836243622,-441.73733715,0.00019398,2]
[341362626,1730836243631,-173.62,0.00019709,2]
[341362628,1730836243641,-250.0,0.00021,2]
[341362630,1730836243650,-542.59,0.00021492,2]
[341362644,1730836243659,-172.52,0.00021918,2]
[341362647,1730836243787,-167.55,0.00021918,2]
[341362649,1730836243796,-225.29,0.00021968,2]
[341362651,1730836243806,-8643.23,0.00022333,2]
[341362653,1730836243816,-486.44,0.00022566,2]
[341362655,1730836243826,-300.0,0.00023,2]
[341362657,1730836243835,-1000.0,0.00023688,2]
[341362660,1730836243845,-169.37,0.00023853,2]
[341362662,1730836243854,-289.2,0.00024343,2]
[341362664,1730836243863,-8762.16708389,0.00024423,2]
[341362677,1730836244003,-7684.87291611,0.00024423,2]
[341362678,1730836244013,-168.41,0.00024636,2]
[341362679,1730836244023,-173.62,0.00024636,2]
[341362680,1730836244033,-1500.0,0.00024658,2]
[341362681,1730836244042,-160.92,0.00024792,2]
[341362682,1730836244051,-486.44,0.0002483,2]
[341362683,1730836244061,-1318.829,0.00024875,8]
[341362684,1730836244071,-306.73,0.00024999,30]
[341362685,1730836244080,-350.0,0.00025,2]
[341362686,1730836244090,-1696.75,0.0002535,2]
[341362687,1730836244100,-1000.0,0.00026649,2]
[341362688,1730836244109,-486.44,0.00027093,2]
[341362689,1730836244119,-168.33,0.00027212,2]
[341362690,1730836244128,-200.0,0.00027397,7]
[341362691,1730836244137,-306.73,0.00027583,30]
[341362692,1730836244147,-362.0,0.000278,2]
[341362693,1730836244156,-439.0,0.00028,2]
[341362694,1730836244165,-2402.0,0.00028,2]
[341362695,1730836244175,-169.387,0.00028101,2]
[341362696,1730836244184,-807.0,0.00028101,2]
[341362697,1730836244195,-767.598,0.00028101,2]
[341362698,1730836244206,-813.0,0.00028101,2]
[341362699,1730836244215,-1176.843,0.00028101,2]
[341362700,1730836244227,-150.0,0.00028101,2]
[341362701,1730836244237,-5909.0,0.00028101,2]
[341362702,1730836244247,-3477.939,0.00028101,2]
[341362703,1730836244258,-150.0,0.00028101,2]
[341362704,1730836244268,-1062.634,0.00028101,2]
[341362705,1730836244278,-486.44,0.00029357,2]
[341362706,1730836244288,-173.62,0.00029563,2]
[341362707,1730836244299,-1000.0,0.0002961,2]
[341362708,1730836244309,-300.0,0.0003,2]
[341362709,1730836244319,-306.73,0.00030167,30]
[341362710,1730836244328,-2974.19385003,0.00031055,2]
[341362711,1730836244338,-197.618,0.00031101,2]
[341362712,1730836244347,-150.0,0.00031101,2]
[341362713,1730836244356,-486.44,0.00031621,2]
[341362714,1730836244365,-168.33,0.00031703,2]
[341362715,1730836244375,-150.0,0.00031732,2]
[341362716,1730836244384,-299.42827256,0.00031741,2]
[341362717,1730836244394,-1202.4042,0.000319,2]
[341362718,1730836244403,-158.98420407,0.000319,2]
[341362719,1730836244412,-596.40532177,0.00031941,2]
[341362720,1730836244422,-150.0,0.00031956,2]
[341362721,1730836244432,-142268.48129971,0.00032,30]
[341362722,1730836244442,-419.8,0.00032,2]
[341362723,1730836244460,-767.14711934,0.00032049,2]
[341362724,1730836244469,-9929.3887801,0.00032061,2]
[341362725,1730836244479,-150.0,0.00032149,2]
[341362726,1730836244488,-150.0,0.00032149,2]
[341362727,1730836244497,-1000.0,0.00032571,2]
[341362728,1730836244507,-306.73,0.00032751,120]
[341362729,1730836244516,-163.11426334,0.00032877,2]
[341362730,1730836244527,-8016.1786,0.000329,2]
[341362731,1730836244536,-2236.03722188,0.00033,21]
[341362732,1730836244546,-355.068665,0.00033,14]
[341362733,1730836244556,-767.1471193,0.00033099,2]
[341362734,1730836244565,-499.216,0.00033144,2]
[341362735,1730836244575,-180.0,0.00033151,2]
[341362736,1730836244584,-203.02075,0.00033233,2]
[341362737,1730836244594,-1152.92472072,0.000335,2]
[341362738,1730836244603,-723.36,0.00033699,2]
[341362739,1730836244613,-722.24,0.00033699,2]
[341362740,1730836244624,-300.0,0.00033699,2]
[341362741,1730836244633,-567.53,0.00033699,2]
[341362742,1730836244643,-301.37,0.00033699,2]
[341362743,1730836244654,-356.68,0.00033699,2]
[341362744,1730836244663,-150.0,0.00033699,2]
[341362745,1730836244673,-300.0,0.00033699,2]
[341362746,1730836244683,-300.0,0.00033699,2]
[341362747,1730836244692,-864.92,0.00033699,2]
[341362748,1730836244707,-431.59,0.00033699,2]
[341362749,1730836244717,-300.0,0.00033699,2]
[341362750,1730836244727,-150.0,0.00033699,2]
[341362751,1730836244736,-486.44,0.00033885,2]
[341362752,1730836244745,-158.98420407,0.00033918,2]
[341362753,1730836244754,-4072.72915129,0.00034,2]
[341362754,1730836244763,-767.1471193,0.00034149,2]
[341362755,1730836244773,-500.0,0.0003446,5]
[341362756,1730836244782,-150.0,0.00034548,10]
[341362757,1730836244791,-443.47548618,0.00034567,2]
[341362758,1730836244801,-10000.0,0.00034604,3]
[341362759,1730836244812,-7823.15311603,0.00035,2]
[341362760,1730836244822,-9609.78498162,0.00035,2]
[341362761,1730836244831,-1000.0,0.00035,7]
[341362762,1730836244842,-445.34,0.00035,2]
[341362763,1730836244853,-1000.0,0.00035,7]
[341362764,1730836244863,-327.24475,0.00035009,2]
[341362765,1730836244874,-150.0,0.00035077,7]
[341362766,1730836244883,-726.14125,0.00035103,2]
[341362767,1730836244892,-23419.55742079,0.00035121,2]
[341362768,1730836244902,-150.0,0.00035149,2]
[341362769,1730836244911,-150.0,0.00035149,2]
[341362770,1730836244921,-767.1471193,0.00035199,2]
[341362771,1730836244931,-306.73,0.00035335,120]
[341362772,1730836244940,-150.0,0.00035342,2]
[341362773,1730836244953,-150.0,0.00035342,2]
[341362774,1730836244962,-150.0,0.00035342,2]
[341362775,1730836244972,-1000.0,0.00035532,2]
[341362776,1730836244982,-289.2,0.00035576,120]
[341362777,1730836244992,-400.99195468,0.000356,2]
[341362778,1730836245002,-500.0,0.00035615,2]
[341362779,1730836245011,-1000.0,0.00035615,30]
[341362780,1730836245021,-153.0,0.00035616,2]
[341362781,1730836245031,-153.0,0.00035616,2]
[341362782,1730836245041,-153.0,0.00035616,2]
[341362783,1730836245050,-153.0,0.00035616,2]
[341362784,1730836245060,-153.0,0.00035616,2]
[341362785,1730836245070,-153.0,0.00035616,2]
[341362786,1730836245080,-153.0,0.00035616,2]
[341362787,1730836245090,-153.0,0.00035616,2]
[341362788,1730836245100,-153.0,0.00035616,2]
[341362789,1730836245109,-153.0,0.00035616,2]
[341362790,1730836245119,-153.0,0.00035616,2]
[341362791,1730836245128,-155.0,0.00035616,2]
[341362792,1730836245138,-155.0,0.00035616,2]
[341362793,1730836245148,-155.0,0.00035616,2]
[341362794,1730836245157,-155.0,0.00035616,2]
[341362795,1730836245167,-155.0,0.00035616,2]
[341362796,1730836245176,-155.0,0.00035616,2]
[341362797,1730836245187,-155.0,0.00035616,2]
[341362798,1730836245196,-155.0,0.00035616,2]
[341362799,1730836245212,-155.0,0.00035616,2]
[341362800,1730836245223,-155.0,0.00035616,2]
[341362801,1730836245234,-155.0,0.00035616,2]
[341362802,1730836245243,-155.0,0.00035616,2]
[341362803,1730836245253,-155.0,0.00035616,2]
[341362804,1730836245263,-155.0,0.00035616,2]
[341362805,1730836245273,-155.0,0.00035616,2]
[341362806,1730836245283,-155.0,0.00035616,2]
[341362807,1730836245294,-155.0,0.00035616,2]
[341362808,1730836245403,-155.0,0.00035616,2]
[341362809,1730836245413,-155.0,0.00035616,2]
[341362810,1730836245422,-155.0,0.00035616,2]
[341362811,1730836245432,-155.0,0.00035616,2]
[341362812,1730836245441,-155.0,0.00035616,2]
[341362813,1730836245455,-155.0,0.00035616,2]
[341362814,1730836245464,-155.0,0.00035616,2]
[341362815,1730836245474,-155.0,0.00035616,2]
[341362816,1730836245483,-155.0,0.00035616,2]
[341362817,1730836245494,-155.0,0.00035616,2]
[341362818,1730836245503,-155.0,0.00035616,2]
[341362819,1730836245513,-155.0,0.00035616,2]
[341362820,1730836245523,-155.0,0.00035616,2]
[341362821,1730836245533,-155.0,0.00035616,2]
[341362822,1730836245542,-155.0,0.00035616,2]
[341362823,1730836245551,-155.0,0.00035616,2]
[341362824,1730836245562,-155.0,0.00035616,2]
[341362825,1730836245571,-155.0,0.00035616,2]
[341362826,1730836245581,-155.0,0.00035616,2]
[341362827,1730836245591,-155.0,0.00035616,2]
[341362828,1730836245601,-155.0,0.00035616,2]
[341362829,1730836245611,-155.0,0.00035616,2]
[341362830,1730836245621,-155.0,0.00035616,2]
[341362831,1730836245630,-155.0,0.00035616,2]
[341362832,1730836245640,-155.0,0.00035616,2]
[341362833,1730836245649,-155.0,0.00035616,2]
[341362834,1730836245659,-155.0,0.00035616,2]
[341362835,1730836245669,-155.0,0.00035616,2]
[341362836,1730836245679,-155.0,0.00035616,2]
[341362837,1730836245689,-155.0,0.00035616,2]
[341362838,1730836245703,-155.0,0.00035616,2]
[341362839,1730836245714,-155.0,0.00035616,2]
[341362840,1730836245724,-155.0,0.00035616,2]
[341362841,1730836245733,-155.0,0.00035616,2]
[341362842,1730836245742,-155.0,0.00035616,2]
[341362843,1730836245753,-155.0,0.00035616,2]
[341362844,1730836245764,-155.0,0.00035616,2]
[341362845,1730836245776,-155.0,0.00035616,2]
[341362846,1730836245786,-155.0,0.00035616,2]
[341362847,1730836245796,-155.0,0.00035616,2]
[341362848,1730836245805,-155.0,0.00035616,2]
[341362849,1730836245815,-155.0,0.00035616,2]
[341362850,1730836245826,-155.0,0.00035616,2]
[341362851,1730836245837,-155.0,0.00035616,2]
[341362852,1730836245847,-155.0,0.00035616,2]
[341362853,1730836245857,-155.0,0.00035616,2]
[341362854,1730836245868,-155.0,0.00035616,2]
[341362855,1730836245878,-155.0,0.00035616,2]
[341362856,1730836245888,-155.0,0.00035616,2]
[341362857,1730836245899,-155.0,0.00035616,2]
[341362858,1730836245910,-155.0,0.00035616,2]
[341362859,1730836245920,-155.0,0.00035616,2]
[341362860,1730836245931,-155.0,0.00035616,2]
[341362861,1730836245941,-155.0,0.00035616,2]
[341362862,1730836245952,-155.0,0.00035616,2]
[341362863,1730836245962,-155.0,0.00035616,2]
[341362864,1730836245972,-155.0,0.00035616,2]
[341362865,1730836245981,-155.0,0.00035616,2]
[341362866,1730836245992,-155.0,0.00035616,2]
[341362867,1730836246002,-155.0,0.00035616,2]
[341362868,1730836246012,-155.0,0.00035616,2]
[341362869,1730836246022,-155.0,0.00035616,2]
[341362870,1730836246032,-155.0,0.00035616,2]
[341362871,1730836246042,-155.0,0.00035616,2]
[341362872,1730836246051,-155.0,0.00035616,2]
[341362873,1730836246061,-155.0,0.00035616,2]
[341362874,1730836246071,-155.0,0.00035616,2]
[341362876,1730836246080,-155.0,0.00035616,2]
[341362877,1730836246089,-155.0,0.00035616,2]
[341362878,1730836246099,-153.0,0.00035616,2]
[341362879,1730836246108,-153.0,0.00035616,2]
[341362880,1730836246116,-153.0,0.00035616,2]
[341362881,1730836246125,-160.0,0.00035616,2]
[341362882,1730836246134,-160.0,0.00035616,2]
[341362883,1730836246142,-160.0,0.00035616,2]
[341362886,1730836246152,-199.07,0.00035616,2]
[341362887,1730836246162,-202.00875,0.00035802,2]
[341362890,1730836246173,-622.88338848,0.0003583,5]
[341362891,1730836246184,-401.0,0.00035935,5]
[341362892,1730836246196,-158.98420407,0.00035935,2]
[341362894,1730836246211,-5049.49,0.00036,10]
[341362895,1730836246227,-486.44,0.00036149,2]
[341362896,1730836246238,-767.1471193,0.00036249,2]
[341362897,1730836246247,-152.13939839,0.00036733,2]
[341362898,1730836246258,-156.7,0.000368,31]
[341362899,1730836246267,-156.7,0.000368,31]
[341362900,1730836246279,-1000.0,0.00036985,120]
[341362901,1730836246290,-10105.30935179,0.00037,2]
[341362902,1730836246301,-1000.0,0.00037,7]
[341362903,1730836246311,-767.1471193,0.00037299,2]
[341362904,1730836246320,-4143.34349555,0.0003759,2]
[341362905,1730836246331,-165.94285611,0.000378,2]
[341362906,1730836246341,-800.0,0.000378,13]
[341362907,1730836246352,-150.0,0.00037808,2]
[341362908,1730836246362,-150.48,0.00037808,2]
[341362909,1730836246372,-202.71243952,0.0003789,2]
[341362910,1730836246381,-1891.6562525,0.00037893,2]
[341362911,1730836246392,-42292.02217939,0.00037898,5]
[341362912,1730836246403,-58627.65098954,0.000379,2]
[341362913,1730836246412,-1600.0,0.000379,13]
[341362914,1730836246422,-306.73,0.00037919,120]
[341362915,1730836246432,-158.98420407,0.00037953,2]
[341362916,1730836246441,-1000.0,0.00038,8]
[341362917,1730836246455,-154.01,0.00038151,2]
[341362918,1730836246465,-4059.97665066,0.0003824,2]
[341362919,1730836246476,-174.01867741,0.00038256,2]
[341362920,1730836246486,-193216.10257473,0.0003834,2]
[341362921,1730836246496,-151.0,0.0003834,7]
[341362922,1730836246506,-151.0,0.0003834,7]
[341362923,1730836246516,-151.0,0.0003834,7]
[341362924,1730836246527,-274.326659,0.0003834,7]
[341362925,1730836246537,-151.0,0.0003834,7]
[341362926,1730836246547,-151.0,0.0003834,7]
[341362927,1730836246557,-151.0,0.0003834,7]
[341362928,1730836246567,-151.0,0.0003834,7]
[341362929,1730836246576,-268.871778,0.0003834,7]
[341362930,1730836246586,-151.0,0.0003834,7]
[341362931,1730836246596,-290.504132,0.0003834,7]
[341362932,1730836246606,-151.0,0.0003834,7]
[341362933,1730836246616,-151.0,0.0003834,7]
[341362934,1730836246626,-767.1471193,0.00038349,2]
[341362935,1730836246636,-150.0,0.00038355,30]
[341362936,1730836246645,-1000.0,0.00038355,2]
[341362937,1730836246655,-1000.0,0.00038355,120]
[341362938,1730836246665,-151.0,0.00038356,7]
[341362939,1730836246676,-151.0,0.00038356,7]
[341362940,1730836246685,-151.0,0.00038356,7]
[341362941,1730836246695,-151.0,0.00038356,7]
[341362943,1730836246707,-208.041561,0.00038356,7]
[341362945,1730836246717,-151.0,0.00038356,7]
[341362947,1730836246727,-151.0,0.00038356,7]
[341362949,1730836246737,-151.0,0.00038356,7]
[341362951,1730836246747,-151.0,0.00038356,7]
[341362953,1730836246756,-151.0,0.00038356,7]
[341362955,1730836246765,-174263.99051848,0.00038356,2]
[341362962,1730836248476,-732.1314,0.000158,2]
[341362963,1730836248568,-788.5574,0.000158,2]
[341362964,1730836248580,-2691.3176,0.00038356,2]
[341362992,1730837326782,227.06,0.00015131,3]
[341362993,1730837330832,150.0,9.012e-05,2]
[341362994,1730837330854,49.272,9.012e-05,2]
[341362995,1730837342954,-824.91388,0.00014692,2]
[341362996,1730837343167,-1010.51210735,0.00014941,2]
[341362997,1730837343212,-4470.7575,0.00015041,2]
[341362998,1730837343232,-80596.44846176,0.00015131,2]
[341362999,1730837343253,-50000.0,0.00015141,2]
[341363000,1730837343273,-170.07804724,0.00015142,2]
[341363001,1730837343293,-203.41223602,0.000152,2]
[341363002,1730837343313,-8690.15,0.00015342,2]
[341363003,1730837343332,-1101.84,0.00015342,2]
[341363004,1730837343353,-157.55,0.00015342,2]
[341363005,1730837343374,-157.02,0.00015342,2]
[341363006,1730837343396,-1679.0896,0.000158,2]
[341363007,1730837343416,-3575.59,0.000158,2]
[341363008,1730837343441,-6848.36,0.000158,2]
[341363009,1730837343500,300.0,0.0001513,2]
[341363011,1730837377483,1629.9562,0.00014666,2]
[341363033,1730837436092,-2380.25,0.00016116,2]
[341363034,1730837436103,-18106.86485873,0.0001615,2]
[341363035,1730837436112,-150.0,0.0001625,2]
[341363036,1730837436121,-999.99,0.00016261,2]
[341363037,1730837436131,-150.99,0.00016461,2]
[341363038,1730837436140,-169.65,0.00016461,2]
[341363039,1730837436150,-681.22,0.00016491,3]
[341363040,1730837436159,-454.12,0.00016501,3]
[341363041,1730837436169,-150.0,0.00016922,2]
[341363042,1730837436178,-1010.04,0.00016922,2]
[341363043,1730837436188,-258.24,0.0001726,2]
[341363044,1730837436200,-2616.08,0.0001726,2]
[341363045,1730837436210,-7062.67,0.0001726,2]
[341363046,1730837436219,-557.98,0.00019452,2]
[341363047,1730837436229,-269.82,0.00019452,2]
[341363048,1730837436237,-172.52,0.00021918,2]
[341363049,1730837436247,-173.62,0.00023778,2]
[341363050,1730837436256,-500.0,0.00027425,2]
[341363051,1730837436266,-2605.0,0.00028,2]
[341363052,1730837436275,-582.93,0.00028369,2]
[341363053,1730837436285,-686.586,0.00028742,2]
[341363054,1730837436298,-812.0,0.00028742,2]
[341363055,1730837436308,-1000.0,0.00028795,2]
[341363056,1730837436317,-157.55,0.00028858,2]
[341363057,1730837436327,-2422.71,0.00028912,2]
[341363058,1730837436336,-2742.78,0.0002911,2]
[341363059,1730837436346,-1119.43,0.00029242,2]
[341363060,1730837436356,-1500.0,0.00029285,2]
[341363061,1730837436366,-2422.71,0.00029377,2]
[341363062,1730837436376,-685.75,0.00029439,2]
[341363063,1730837436385,-2622.06,0.00029543,2]
[341363064,1730837436395,-385.82,0.00029548,2]
[341363065,1730837436405,-1000.0,0.00029642,2]
[341363066,1730837436414,-200.0,0.00029723,7]
[341363067,1730837436424,-2523.71,0.00029822,2]
[341363068,1730837436434,-2422.71,0.00029841,2]
[341363069,1730837436443,-1082.8826,0.00029863,10]
[341363070,1730837436456,-1366.0,0.00029881,2]
[341363071,1730837436465,-200.0,0.00029881,2]
[341363072,1730837436475,-250.0,0.00029933,2]
[341363073,1730837436485,-202.55,0.00029942,2]
[341363074,1730837436494,-1624.12,0.00029956,2]
[341363075,1730837436504,-368.1555,0.0003,2]
[341363076,1730837436514,-368.1555,0.0003,2]
[341363077,1730837436524,-150.96,0.0003,2]
[341363078,1730837436534,-150.96,0.0003,2]
[341363079,1730837436544,-150.96,0.0003,2]
[341363080,1730837436553,-150.96,0.0003,2]
[341363081,1730837436564,-150.96,0.0003,2]
[341363082,1730837436574,-150.96,0.0003,2]
[341363083,1730837436584,-150.96,0.0003,2]
[341363084,1730837436593,-150.96,0.0003,2]
[341363085,1730837436603,-150.96,0.0003,2]
[341363086,1730837436613,-150.96,0.0003,2]
[341363087,1730837436623,-159.33,0.00030007,2]
[341363089,1730837436633,-210.13,0.00030035,10]
[341363091,1730837436643,-23900.0,0.00030045,2]
[341363093,1730837436653,-250.0,0.00030098,2]
[341363095,1730837436665,-1345.78,0.00030105,2]
[341363097,1730837436674,-150.0,0.00030105,2]
[341363099,1730837436683,-158.24,0.00030184,2]
[341363101,1730837436693,-250.0,0.00030288,2]
[341363103,1730837436706,-2422.71,0.00030306,2]
[341363104,1730837436715,-1623.2,0.00030359,2]
[341363105,1730837436724,-194.97,0.00030555,2]
[341363106,1730837436734,-243.02,0.00030578,30]
[341363107,1730837436743,-489.48,0.00030584,2]
[341363108,1730837436755,-2751.0,0.00030589,120]
[341363109,1730837436766,-582.93,0.00030632,2]
[341363111,1730837436775,-2422.71,0.0003077,2]
[341363112,1730837436784,-355.53,0.00030773,2]
[341363114,1730837436794,-181.57,0.00030823,2]
[341363116,1730837436805,-200.0,0.00030854,2]
[341363118,1730837436815,-167.55,0.0003091,120]
[341363120,1730837436826,-171.39,0.00030938,2]
[341363122,1730837436837,-721.0,0.000311,2]
[341363125,1730837436847,-2422.71,0.00031235,2]
[341363139,1730837436987,-304.50066629,0.000313,2]
[341363141,1730837437000,-1195.49933371,0.000313,2]
[341363143,1730837437009,-2422.71,0.00031699,2]
[341363145,1730837437018,-1901.71066629,0.00032164,2]
[341363148,1730837437033,-175.11,0.00031289,10]
[341363150,1730837437042,-382.12203078,0.00032164,2]
[341363152,1730837437053,-138.87730293,0.00032164,2]
[341363154,1730837437062,-1636.43749707,0.0003217,2]
[341363212,1730837438773,-5370.65790293,0.0003217,2]
[341363213,1730837438782,-158.24,0.00032196,2]
[341363214,1730837438792,-192.8,0.00032512,120]
[341363215,1730837438804,-500.0,0.00032512,2]
[341363216,1730837438815,-170.06,0.00032812,2]
[341363217,1730837438826,-582.93,0.00032896,2]
[341363224,1730837438837,-150.0,0.00033,14]
[341363226,1730837438952,-180.0,0.00033151,2]
[341363228,1730837438961,-243.02,0.00033162,120]
[341363230,1730837438970,-368.1555,0.00034191,2]
[341363232,1730837438980,-158.24,0.00034209,2]
[341363234,1730837438989,-1500.0,0.00034543,2]
[341363236,1730837438998,-166.35,0.00034706,2]
[341363238,1730837439008,-582.93,0.0003516,2]
[341363240,1730837439018,-1170.966,0.00035616,42]
[341363242,1730837439027,-171.78246776,0.00035616,42]
[341363244,1730837439036,-153.0,0.00035616,2]
[341363246,1730837439046,-153.0,0.00035616,2]
[341363248,1730837439055,-153.0,0.00035616,2]
[341363250,1730837439064,-153.0,0.00035616,2]
[341363252,1730837439073,-153.0,0.00035616,2]
[341363253,1730837439083,-153.0,0.00035616,2]
[341363255,1730837439092,-153.0,0.00035616,2]
[341363256,1730837439101,-153.0,0.00035616,2]
[341363258,1730837439110,-153.0,0.00035616,2]
[341363260,1730837439120,-153.0,0.00035616,2]
[341363262,1730837439129,-153.0,0.00035616,2]
[341363264,1730837439138,-153.0,0.00035616,2]
[341363266,1730837439150,-153.0,0.00035616,2]
[341363269,1730837439161,-153.0,0.00035616,2]
[341363271,1730837439170,-153.0,0.00035616,2]
[341363272,1730837439179,-153.0,0.00035616,2]
[341363274,1730837439189,-153.0,0.00035616,2]
[341363276,1730837439198,-153.0,0.00035616,2]
[341363278,1730837439210,-153.0,0.00035616,2]
[341363280,1730837439219,-153.0,0.00035616,2]
[341363282,1730837439229,-153.0,0.00035616,2]
[341363284,1730837439238,-153.0,0.00035616,2]
[341363286,1730837439248,-153.0,0.00035616,2]
[341363288,1730837439257,-243.02,0.00035746,120]
[341363290,1730837439267,-158.24,0.00036221,2]
[341363291,1730837439275,-156.71,0.000368,31]
[341363293,1730837439285,-156.71,0.000368,31]
[341363295,1730837439294,-500.0,0.00037133,2]
[341363297,1730837439304,-198.77680708,0.000372,103]
[341363299,1730837439314,-198.77680706,0.000372,103]
[341363301,1730837439323,-198.77680706,0.000372,103]
[341363303,1730837439333,-198.77680706,0.000372,103]
[341363305,1730837439342,-582.93,0.00037424,2]
[341363307,1730837439351,-1391.21543343,0.00037708,15]
[341363342,1730837439702,-346.0,0.00037708,15]
[341363353,1730837439904,-498.92723845,0.00037708,15]
[341363355,1730837439915,-3891.06464588,0.00037708,15]
[341363357,1730837439925,-1000.0,0.00037713,2]
[341363359,1730837439934,-158.98420407,0.0003779,2]
[341363361,1730837439944,-150.0,0.00037808,2]
[341363363,1730837439954,-301.6,0.00037808,2]
[341363365,1730837439964,-459.46,0.00037808,2]
[341363367,1730837439973,-432.46,0.00037808,2]
[341363369,1730837439983,-302.76,0.00037808,2]
[341363371,1730837439993,-150.0,0.00037808,2]
[341363373,1730837440002,-150.0,0.00037808,2]
[341363375,1730837440012,-432.46,0.00037808,2]
[341363377,1730837440021,-150.0,0.00037808,2]
[341363379,1730837440030,-150.0,0.00037808,2]
[341363381,1730837440040,-432.46,0.00037808,2]
[341363383,1730837440050,-150.0,0.00037808,2]
[341363386,1730837440059,-150.0,0.00037808,2]
[341363387,1730837440067,-432.46,0.00037808,2]
[341363390,1730837440077,-150.0,0.00037808,2]
[341363392,1730837440086,-150.0,0.00037808,2]
[341363411,1730837440225,-150.0,0.00037808,2]
[341363413,1730837440236,-150.0,0.00037808,2]
[341363415,1730837440245,-150.0,0.00037808,2]
[341363417,1730837440255,-150.0,0.00037808,2]